[Event "Titled Tuesday Blitz July 18 Late 2023"]
[White "Santos, Rafael Ventura Dos"]
[Black "Ismayil, Malak"]
[WhiteFideId "2122227"]
[BlackFideId "13412604"]
[WhiteElo "2308"]
[BlackElo "2507"]
[Result "1-0"]
[Round "11"]
[TimeControl "180+2"]
[Date "2023.07.18"]
[WhiteClock "0:00:07"]
[BlackClock "0:00:03"]
[Board "68"]

1. e4 {[%clk 0:03:00]}  e5 {[%clk 0:02:59]} 2. Nf3 {[%clk 0:03:00]}  Nc6 {[%clk 0:03:00]} 3. Bc4 {[%clk 0:03:01]}  Bc5 {[%clk 0:02:59]} 4. d3 {[%clk 0:03:01]}  Nf6 {[%clk 0:03:00]} 5. Nc3 {[%clk 0:02:55]}  O-O {[%clk 0:03:00]} 6. O-O {[%clk 0:02:46]}  h6 {[%clk 0:03:00]} 7. Be3 {[%clk 0:02:43]}  Bb6 {[%clk 0:02:59]} 8. Ne2 {[%clk 0:02:40]}  d5 {[%clk 0:02:56]} 9. exd5 {[%clk 0:02:34]}  Nxd5 {[%clk 0:02:57]} 10. Bxb6 {[%clk 0:02:32]}  axb6 {[%clk 0:02:58]} 11. Re1 {[%clk 0:02:16]}  Bg4 {[%clk 0:02:57]} 12. Ng3 {[%clk 0:02:06]}  Re8 {[%clk 0:02:55]} 13. h3 {[%clk 0:02:05]}  Bxf3 {[%clk 0:02:50]} 14. Qxf3 {[%clk 0:02:06]}  Nf4 {[%clk 0:02:50]} 15. Ne2 {[%clk 0:01:42]}  Nd4 {[%clk 0:02:40]} 16. Nxd4 {[%clk 0:01:39]}  Qxd4 {[%clk 0:02:41]} 17. c3 {[%clk 0:01:31]}  Qd6 {[%clk 0:02:38]} 18. Qxb7 {[%clk 0:01:28]}  Qg6 {[%clk 0:02:33]} 19. Qf3 {[%clk 0:01:27]}  Rad8 {[%clk 0:02:28]} 20. Rad1 {[%clk 0:01:26]}  Kh8 {[%clk 0:02:21]} 21. Kh2 {[%clk 0:01:25]}  Qg5 {[%clk 0:01:50]} 22. g3 {[%clk 0:01:21]}  Ng6 {[%clk 0:01:30]} 23. h4 {[%clk 0:00:47]}  Nxh4 {[%clk 0:01:22]} 24. gxh4 {[%clk 0:00:48]}  Qxh4+ {[%clk 0:01:22]} 25. Kg2 {[%clk 0:00:49]}  Rd6 {[%clk 0:01:20]} 26. Kf1 {[%clk 0:00:39]}  Rf6 {[%clk 0:01:17]} 27. Qg2 {[%clk 0:00:38]}  c6 {[%clk 0:01:10]} 28. Re3 {[%clk 0:00:36]}  Qh5 {[%clk 0:01:04]} 29. Ke1 {[%clk 0:00:32]}  b5 {[%clk 0:01:00]} 30. Bb3 {[%clk 0:00:31]}  Re7 {[%clk 0:00:52]} 31. d4 {[%clk 0:00:29]}  Rg6 {[%clk 0:00:46]} 32. Qf3 {[%clk 0:00:27]}  Qxf3 {[%clk 0:00:34]} 33. Rxf3 {[%clk 0:00:26]}  exd4+ {[%clk 0:00:35]} 34. Kd2 {[%clk 0:00:24]}  dxc3+ {[%clk 0:00:34]} 35. bxc3 {[%clk 0:00:20]}  Rd6+ {[%clk 0:00:28]} 36. Kc2 {[%clk 0:00:21]}  Re2+ {[%clk 0:00:26]} 37. Kc1 {[%clk 0:00:20]}  Rxd1+ {[%clk 0:00:23]} 38. Kxd1 {[%clk 0:00:20]}  Re7 {[%clk 0:00:23]} 39. Rxf7 {[%clk 0:00:20]}  Re8 {[%clk 0:00:18]} 40. Bc2 {[%clk 0:00:19]}  Rd8+ {[%clk 0:00:16]} 41. Ke1 {[%clk 0:00:19]}  c5 {[%clk 0:00:17]} 42. Bg6 {[%clk 0:00:18]}  b4 {[%clk 0:00:16]} 43. cxb4 {[%clk 0:00:18]}  cxb4 {[%clk 0:00:17]} 44. Rb7 {[%clk 0:00:18]}  Kg8 {[%clk 0:00:15]} 45. Rxb4 {[%clk 0:00:18]}  Kf8 {[%clk 0:00:15]} 46. Rb7 {[%clk 0:00:18]}  Rd6 {[%clk 0:00:13]} 47. Be4 {[%clk 0:00:13]}  Re6 {[%clk 0:00:13]} 48. f3 {[%clk 0:00:14]}  Ra6 {[%clk 0:00:12]} 49. Rb2 {[%clk 0:00:12]}  h5 {[%clk 0:00:11]} 50. Kf2 {[%clk 0:00:13]}  h4 {[%clk 0:00:10]} 51. Kg2 {[%clk 0:00:13]}  Kf7 {[%clk 0:00:10]} 52. Kh3 {[%clk 0:00:13]}  g5 {[%clk 0:00:11]} 53. Kg4 {[%clk 0:00:13]}  Kf6 {[%clk 0:00:12]} 54. Rd2 {[%clk 0:00:11]}  Rb6 {[%clk 0:00:03]} 55. Rd5 {[%clk 0:00:11]}  Rb2 {[%clk 0:00:04]} 56. Rf5+ {[%clk 0:00:11]}  Ke6 {[%clk 0:00:04]} 57. Rxg5 {[%clk 0:00:10]}  h3 {[%clk 0:00:03]} 58. Rg6+ {[%clk 0:00:09]}  Kf7 {[%clk 0:00:03]} 59. Rh6 {[%clk 0:00:09]}  Kg7 {[%clk 0:00:02]} 60. Rh7+ {[%clk 0:00:09]}  Kf6 {[%clk 0:00:02]} 61. Kg3 {[%clk 0:00:10]}  Rxa2 {[%clk 0:00:02]} 62. Rxh3 {[%clk 0:00:10]}  Ra1 {[%clk 0:00:02]} 63. Rh6+ {[%clk 0:00:09]}  Kg5 {[%clk 0:00:03]} 64. Rb6 {[%clk 0:00:07]}  Rg1+ {[%clk 0:00:02]} 65. Kf2 {[%clk 0:00:08]}  Ra1 {[%clk 0:00:02]} 66. Rb5+ {[%clk 0:00:07]}  Kf6 {[%clk 0:00:03]} 67. Kg3 {[%clk 0:00:07]}  Rg1+ {[%clk 0:00:02]} 68. Kf4 {[%clk 0:00:08]}  Ra1 {[%clk 0:00:03]} 69. Rb6+ {[%clk 0:00:08]}  Ke7 {[%clk 0:00:04]} 70. Ke5 {[%clk 0:00:07]}  Ra5+ {[%clk 0:00:03]} 71. Bd5 {[%clk 0:00:07]}  Kf8 {[%clk 0:00:04]} 72. f4 {[%clk 0:00:08]}  Kg7 {[%clk 0:00:04]} 73. f5 {[%clk 0:00:08]}  Ra1 {[%clk 0:00:04]} 74. f6+ {[%clk 0:00:07]}  Kg6 {[%clk 0:00:04]} 75. Be4+ {[%clk 0:00:07]}  Kf7 {[%clk 0:00:04]} 76. Rb7+ {[%clk 0:00:08]}  Kf8 {[%clk 0:00:04]} 77. Kf5 {[%clk 0:00:06]}  Rf1+ {[%clk 0:00:03]} 78. Ke6 {[%clk 0:00:07]}  Kg8 {[%clk 0:00:03]} 79. Rb8# {[%clk 0:00:07]} 1-0


[Site "https://www.chess.com"]

[Event "Titled Tuesday Blitz July 18 Late 2023"]
[White "Oro, Faustino"]
[Black "SicilianPanzer"]
[WhiteFideId "20000197"]
[WhiteElo "2730"]
[BlackElo "2316"]
[Result "1-0"]
[Round "11"]
[TimeControl "180+2"]
[Date "2023.07.18"]
[WhiteClock "0:01:20"]
[BlackClock "0:00:01"]
[Board "69"]

1. e4 {[%clk 0:03:00]}  c5 {[%clk 0:02:59]} 2. Nf3 {[%clk 0:03:00]}  Nc6 {[%clk 0:02:58]} 3. Bb5 {[%clk 0:02:59]}  d6 {[%clk 0:02:58]} 4. O-O {[%clk 0:02:59]}  Bd7 {[%clk 0:02:56]} 5. Re1 {[%clk 0:02:59]}  a6 {[%clk 0:02:56]} 6. Bf1 {[%clk 0:02:58]}  Bg4 {[%clk 0:02:56]} 7. c3 {[%clk 0:02:58]}  Nf6 {[%clk 0:02:52]} 8. h3 {[%clk 0:02:58]}  Bxf3 {[%clk 0:02:48]} 9. Qxf3 {[%clk 0:02:59]}  g6 {[%clk 0:02:45]} 10. d3 {[%clk 0:02:58]}  Bg7 {[%clk 0:02:43]} 11. Nd2 {[%clk 0:02:58]}  O-O {[%clk 0:02:41]} 12. Qd1 {[%clk 0:02:58]}  b5 {[%clk 0:02:33]} 13. Nf3 {[%clk 0:02:58]}  b4 {[%clk 0:02:13]} 14. d4 {[%clk 0:02:56]}  bxc3 {[%clk 0:02:11]} 15. bxc3 {[%clk 0:02:57]}  Qa5 {[%clk 0:01:48]} 16. Bd2 {[%clk 0:02:52]}  Rfb8 {[%clk 0:01:34]} 17. Bc4 {[%clk 0:02:36]}  e6 {[%clk 0:01:19]} 18. Rc1 {[%clk 0:02:20]}  d5 {[%clk 0:00:56]} 19. exd5 {[%clk 0:02:19]}  exd5 {[%clk 0:00:56]} 20. Bd3 {[%clk 0:02:18]}  c4 {[%clk 0:00:53]} 21. Bb1 {[%clk 0:02:16]}  Rb2 {[%clk 0:00:48]} 22. Ne5 {[%clk 0:02:14]}  Nxe5 {[%clk 0:00:43]} 23. dxe5 {[%clk 0:02:14]}  Ne4 {[%clk 0:00:39]} 24. Bxe4 {[%clk 0:02:13]}  dxe4 {[%clk 0:00:39]} 25. Rxe4 {[%clk 0:02:11]}  Rd8 {[%clk 0:00:35]} 26. e6 {[%clk 0:01:55]}  fxe6 {[%clk 0:00:27]} 27. Qg4 {[%clk 0:01:41]}  Qf5 {[%clk 0:00:25]} 28. Be3 {[%clk 0:01:34]}  Qxg4 {[%clk 0:00:17]} 29. hxg4 {[%clk 0:01:35]}  Kf7 {[%clk 0:00:16]} 30. Rxc4 {[%clk 0:01:32]}  Rxa2 {[%clk 0:00:16]} 31. Rc7+ {[%clk 0:01:32]}  Kg8 {[%clk 0:00:15]} 32. c4 {[%clk 0:01:30]}  Rb2 {[%clk 0:00:12]} 33. c5 {[%clk 0:01:29]}  a5 {[%clk 0:00:11]} 34. c6 {[%clk 0:01:29]}  Rbb8 {[%clk 0:00:09]} 35. Rxg7+ {[%clk 0:01:23]}  Kxg7 {[%clk 0:00:08]} 36. c7 {[%clk 0:01:23]}  a4 {[%clk 0:00:06]} 37. cxd8=Q {[%clk 0:01:20]}  Rxd8 {[%clk 0:00:06]} 38. Rc7+ {[%clk 0:01:21]}  Kg8 {[%clk 0:00:06]} 39. Ra7 {[%clk 0:01:21]}  Rd1+ {[%clk 0:00:05]} 40. Kh2 {[%clk 0:01:21]}  Ra1 {[%clk 0:00:03]} 41. Bd4 {[%clk 0:01:21]}  Ra2 {[%clk 0:00:01]} 42. Rg7+ {[%clk 0:01:20]} 1-0


[Site "https://www.chess.com"]

[Event "Titled Tuesday Blitz July 18 Late 2023"]
[White "Mikhalsky, Vladimir"]
[Black "Tikhonov, Viacheslav"]
[WhiteFideId "14144352"]
[BlackFideId "44196407"]
[WhiteElo "2397"]
[BlackElo "2521"]
[Result "0-1"]
[Round "11"]
[TimeControl "180+2"]
[Date "2023.07.18"]
[WhiteClock "0:00:13"]
[BlackClock "0:01:41"]
[Board "70"]

1. d4 {[%clk 0:02:59]}  d5 {[%clk 0:02:57]} 2. c4 {[%clk 0:02:59]}  e6 {[%clk 0:02:56]} 3. Nf3 {[%clk 0:02:59]}  Nf6 {[%clk 0:02:56]} 4. g3 {[%clk 0:03:00]}  Be7 {[%clk 0:02:51]} 5. Bg2 {[%clk 0:03:00]}  O-O {[%clk 0:02:52]} 6. O-O {[%clk 0:03:00]}  dxc4 {[%clk 0:02:52]} 7. Qc2 {[%clk 0:02:59]}  c6 {[%clk 0:02:51]} 8. a4 {[%clk 0:02:58]}  b6 {[%clk 0:02:44]} 9. Qxc4 {[%clk 0:02:57]}  Bb7 {[%clk 0:02:39]} 10. Ne5 {[%clk 0:02:55]}  Qc7 {[%clk 0:02:35]} 11. Bf4 {[%clk 0:02:50]}  Bd6 {[%clk 0:02:35]} 12. Nc3 {[%clk 0:02:49]}  Nd5 {[%clk 0:02:31]} 13. Nxd5 {[%clk 0:02:34]}  exd5 {[%clk 0:02:24]} 14. Qc2 {[%clk 0:02:27]}  Nd7 {[%clk 0:02:19]} 15. Bxd5 {[%clk 0:02:01]}  Nxe5 {[%clk 0:02:15]} 16. Bxe5 {[%clk 0:01:52]}  Bxe5 {[%clk 0:02:16]} 17. dxe5 {[%clk 0:01:50]}  Qxe5 {[%clk 0:02:17]} 18. Be4 {[%clk 0:01:47]}  g6 {[%clk 0:02:09]} 19. b4 {[%clk 0:01:46]}  Rfe8 {[%clk 0:02:05]} 20. Bf3 {[%clk 0:01:45]}  Qe7 {[%clk 0:02:02]} 21. a5 {[%clk 0:01:41]}  c5 {[%clk 0:02:00]} 22. Bxb7 {[%clk 0:01:26]}  Qxb7 {[%clk 0:02:01]} 23. axb6 {[%clk 0:01:08]}  axb6 {[%clk 0:02:02]} 24. bxc5 {[%clk 0:01:06]}  bxc5 {[%clk 0:02:00]} 25. Rxa8 {[%clk 0:01:02]}  Qxa8 {[%clk 0:02:00]} 26. e3 {[%clk 0:01:01]}  Qc6 {[%clk 0:01:52]} 27. Rd1 {[%clk 0:00:56]}  h5 {[%clk 0:01:52]} 28. Qc4 {[%clk 0:00:54]}  Rc8 {[%clk 0:01:50]} 29. h4 {[%clk 0:00:52]}  Qf6 {[%clk 0:01:48]} 30. Rd5 {[%clk 0:00:50]}  Qa1+ {[%clk 0:01:47]} 31. Kg2 {[%clk 0:00:49]}  Qa8 {[%clk 0:01:48]} 32. Kh2 {[%clk 0:00:48]}  Qc6 {[%clk 0:01:46]} 33. Re5 {[%clk 0:00:47]}  Qf3 {[%clk 0:01:45]} 34. Kg1 {[%clk 0:00:26]}  Rd8 {[%clk 0:01:41]} 35. Qe4 {[%clk 0:00:13]}  Rd1+ {[%clk 0:01:40]} 36. Kh2 {[%clk 0:00:13]}  Rh1# {[%clk 0:01:41]} 0-1


[Site "https://www.chess.com"]

[Event "Titled Tuesday Blitz July 18 Late 2023"]
[White "Topalov, Aleksandar"]
[Black "D`Arruda, Ricardo D."]
[WhiteFideId "925659"]
[BlackFideId "100692"]
[WhiteElo "2379"]
[BlackElo "2504"]
[Result "0-1"]
[Round "11"]
[TimeControl "180+2"]
[Date "2023.07.18"]
[WhiteClock "0:00:00"]
[BlackClock "0:00:32"]
[Board "72"]

1. b3 {[%clk 0:03:00]}  e5 {[%clk 0:02:49]} 2. Bb2 {[%clk 0:03:00]}  Nc6 {[%clk 0:02:48]} 3. c4 {[%clk 0:03:00]}  Nf6 {[%clk 0:02:47]} 4. e3 {[%clk 0:03:00]}  d6 {[%clk 0:02:47]} 5. Nf3 {[%clk 0:02:59]}  Be7 {[%clk 0:02:47]} 6. d4 {[%clk 0:02:59]}  exd4 {[%clk 0:02:47]} 7. Nxd4 {[%clk 0:02:59]}  O-O {[%clk 0:02:46]} 8. Nc3 {[%clk 0:02:58]}  Bd7 {[%clk 0:02:45]} 9. Be2 {[%clk 0:02:58]}  Re8 {[%clk 0:02:45]} 10. Bf3 {[%clk 0:02:57]}  Bf8 {[%clk 0:02:44]} 11. O-O {[%clk 0:02:54]}  Rb8 {[%clk 0:02:42]} 12. Qd2 {[%clk 0:02:47]}  Ne5 {[%clk 0:02:41]} 13. Rad1 {[%clk 0:02:43]}  Nxf3+ {[%clk 0:02:40]} 14. gxf3 {[%clk 0:02:43]}  Bh3 {[%clk 0:02:38]} 15. Rfe1 {[%clk 0:02:37]}  Ne4 {[%clk 0:02:18]} 16. Nxe4 {[%clk 0:02:36]}  Rxe4 {[%clk 0:02:18]} 17. Kh1 {[%clk 0:02:34]}  Rh4 {[%clk 0:02:16]} 18. Rg1 {[%clk 0:02:34]}  Qf6 {[%clk 0:02:11]} 19. Rg3 {[%clk 0:02:31]}  Qh6 {[%clk 0:02:09]} 20. Rdg1 {[%clk 0:02:11]}  Bd7 {[%clk 0:02:02]} 21. R1g2 {[%clk 0:02:11]}  c5 {[%clk 0:01:47]} 22. Ne2 {[%clk 0:02:05]}  g6 {[%clk 0:01:36]} 23. Qc3 {[%clk 0:02:01]}  Bg7 {[%clk 0:01:35]} 24. Qd2 {[%clk 0:01:54]}  Bc6 {[%clk 0:01:32]} 25. Bxg7 {[%clk 0:01:41]}  Qxg7 {[%clk 0:01:33]} 26. Qxd6 {[%clk 0:01:39]}  Re8 {[%clk 0:01:26]} 27. Qxc5 {[%clk 0:01:31]}  Qa1+ {[%clk 0:01:26]} 28. Rg1 {[%clk 0:01:30]}  Qxa2 {[%clk 0:01:27]} 29. Qg5 {[%clk 0:01:02]}  Qxe2 {[%clk 0:01:17]} 30. Qxh4 {[%clk 0:01:00]}  Bxf3+ {[%clk 0:01:18]} 31. Rxf3 {[%clk 0:00:55]}  Qxf3+ {[%clk 0:01:19]} 32. Rg2 {[%clk 0:00:55]}  Qd1+ {[%clk 0:01:15]} 33. Rg1 {[%clk 0:00:54]}  Qxb3 {[%clk 0:01:16]} 34. Qd4 {[%clk 0:00:49]}  b6 {[%clk 0:01:07]} 35. Ra1 {[%clk 0:00:45]}  Qc2 {[%clk 0:01:02]} 36. Kg2 {[%clk 0:00:42]}  Re4 {[%clk 0:00:54]} 37. Qd8+ {[%clk 0:00:30]}  Kg7 {[%clk 0:00:54]} 38. Rxa7 {[%clk 0:00:23]}  Qxc4 {[%clk 0:00:46]} 39. Ra8 {[%clk 0:00:20]}  Rg4+ {[%clk 0:00:45]} 40. Kf3 {[%clk 0:00:20]}  Qe4+ {[%clk 0:00:43]} 41. Ke2 {[%clk 0:00:20]}  Qc2+ {[%clk 0:00:43]} 42. Kf3 {[%clk 0:00:20]}  Qf5+ {[%clk 0:00:43]} 43. Ke2 {[%clk 0:00:20]}  Kh6 {[%clk 0:00:41]} 44. Qf8+ {[%clk 0:00:18]}  Kh5 {[%clk 0:00:41]} 45. Re8 {[%clk 0:00:10]}  Rg2 {[%clk 0:00:39]} 46. Qe7 {[%clk 0:00:03]}  Rxf2+ {[%clk 0:00:33]} 47. Kd1 {[%clk 0:00:00]}  Qc2+ {[%clk 0:00:32]} 0-1


[Site "https://www.chess.com"]

[Event "Titled Tuesday Blitz July 18 Late 2023"]
[White "Seletsky, Grigory"]
[Black "Mazurkiewicz, Michal"]
[WhiteFideId "14112191"]
[BlackFideId "1124943"]
[WhiteElo "2470"]
[BlackElo "2400"]
[Result "1-0"]
[Round "11"]
[TimeControl "180+2"]
[Date "2023.07.18"]
[WhiteClock "0:00:03"]
[BlackClock "0:00:06"]
[Board "77"]

1. a3 {[%clk 0:02:50]}  Nf6 {[%clk 0:02:59]} 2. c4 {[%clk 0:02:51]}  g6 {[%clk 0:02:59]} 3. Nc3 {[%clk 0:02:51]}  Bg7 {[%clk 0:02:59]} 4. e4 {[%clk 0:02:50]}  d6 {[%clk 0:03:00]} 5. d4 {[%clk 0:02:50]}  O-O {[%clk 0:02:59]} 6. f3 {[%clk 0:02:50]}  e5 {[%clk 0:02:58]} 7. d5 {[%clk 0:02:49]}  a5 {[%clk 0:02:56]} 8. Be3 {[%clk 0:02:42]}  Na6 {[%clk 0:02:55]} 9. Bd3 {[%clk 0:02:43]}  Nd7 {[%clk 0:02:55]} 10. Nge2 {[%clk 0:02:41]}  Ndc5 {[%clk 0:02:52]} 11. Bc2 {[%clk 0:02:41]}  f5 {[%clk 0:02:49]} 12. Qd2 {[%clk 0:02:40]}  Bd7 {[%clk 0:02:42]} 13. b3 {[%clk 0:02:34]}  Rb8 {[%clk 0:02:29]} 14. Rb1 {[%clk 0:02:26]}  b5 {[%clk 0:02:28]} 15. cxb5 {[%clk 0:02:26]}  Bxb5 {[%clk 0:02:28]} 16. Nxb5 {[%clk 0:02:25]}  Rxb5 {[%clk 0:02:29]} 17. Nc3 {[%clk 0:02:25]}  Rb8 {[%clk 0:02:21]} 18. O-O {[%clk 0:02:24]}  Qh4 {[%clk 0:01:51]} 19. a4 {[%clk 0:01:59]}  Nb4 {[%clk 0:01:48]} 20. h3 {[%clk 0:01:44]}  Nxc2 {[%clk 0:01:43]} 21. Qxc2 {[%clk 0:01:42]}  Bh6 {[%clk 0:01:42]} 22. Bxh6 {[%clk 0:01:36]}  Qxh6 {[%clk 0:01:41]} 23. Rfe1 {[%clk 0:01:33]}  Rb4 {[%clk 0:01:29]} 24. Nb5 {[%clk 0:01:31]}  fxe4 {[%clk 0:01:28]} 25. fxe4 {[%clk 0:01:29]}  Qf4 {[%clk 0:01:22]} 26. Nxc7 {[%clk 0:01:27]}  Rxe4 {[%clk 0:01:13]} 27. Rxe4 {[%clk 0:01:17]}  Nxe4 {[%clk 0:01:10]} 28. Qd3 {[%clk 0:00:53]}  Nf2 {[%clk 0:00:31]} 29. Qc3 {[%clk 0:00:39]}  Ne4 {[%clk 0:00:12]} 30. Qd3 {[%clk 0:00:38]}  Ng5 {[%clk 0:00:12]} 31. Rf1 {[%clk 0:00:36]}  Qxf1+ {[%clk 0:00:08]} 32. Qxf1 {[%clk 0:00:36]}  Rxf1+ {[%clk 0:00:08]} 33. Kxf1 {[%clk 0:00:36]}  Ne4 {[%clk 0:00:09]} 34. Ke2 {[%clk 0:00:32]}  Nc5 {[%clk 0:00:09]} 35. Nb5 {[%clk 0:00:23]}  Nxb3 {[%clk 0:00:10]} 36. Nxd6 {[%clk 0:00:23]}  Nc5 {[%clk 0:00:10]} 37. Nc4 {[%clk 0:00:21]}  Nxa4 {[%clk 0:00:10]} 38. Nxa5 {[%clk 0:00:21]}  Nc3+ {[%clk 0:00:11]} 39. Kd3 {[%clk 0:00:18]}  Nxd5 {[%clk 0:00:12]} 40. Ke4 {[%clk 0:00:18]}  Nf4 {[%clk 0:00:12]} 41. g3 {[%clk 0:00:17]}  Nxh3 {[%clk 0:00:12]} 42. Kxe5 {[%clk 0:00:17]}  Kg7 {[%clk 0:00:12]} 43. Ke4 {[%clk 0:00:17]}  Ng5+ {[%clk 0:00:12]} 44. Kf4 {[%clk 0:00:17]}  Ne6+ {[%clk 0:00:13]} 45. Ke5 {[%clk 0:00:16]}  Ng5 {[%clk 0:00:13]} 46. Nc4 {[%clk 0:00:16]}  Nf7+ {[%clk 0:00:12]} 47. Kf4 {[%clk 0:00:16]}  Kf6 {[%clk 0:00:13]} 48. Nd2 {[%clk 0:00:15]}  g5+ {[%clk 0:00:11]} 49. Kf3 {[%clk 0:00:15]}  h5 {[%clk 0:00:09]} 50. Ne4+ {[%clk 0:00:14]}  Kf5 {[%clk 0:00:10]} 51. Nf2 {[%clk 0:00:13]}  Ne5+ {[%clk 0:00:10]} 52. Kg2 {[%clk 0:00:12]}  g4 {[%clk 0:00:07]} 53. Kf1 {[%clk 0:00:11]}  Nc4 {[%clk 0:00:06]} 54. Ke2 {[%clk 0:00:11]}  Nd6 {[%clk 0:00:06]} 55. Ke3 {[%clk 0:00:10]}  Nc4+ {[%clk 0:00:05]} 56. Kd4 {[%clk 0:00:09]}  Nd2 {[%clk 0:00:04]} 57. Nd1 {[%clk 0:00:08]}  Nf1 {[%clk 0:00:03]} 58. Ne3+ {[%clk 0:00:08]}  Nxe3 {[%clk 0:00:04]} 59. Kxe3 {[%clk 0:00:09]}  Ke5 {[%clk 0:00:04]} 60. Kd3 {[%clk 0:00:09]}  Kd5 {[%clk 0:00:04]} 61. Ke3 {[%clk 0:00:10]}  Ke5 {[%clk 0:00:03]} 62. Kd3 {[%clk 0:00:10]}  h4 {[%clk 0:00:04]} 63. gxh4 {[%clk 0:00:06]}  Kf4 {[%clk 0:00:04]} 64. Ke2 {[%clk 0:00:06]}  Kg3 {[%clk 0:00:04]} 65. h5 {[%clk 0:00:06]}  Kh2 {[%clk 0:00:05]} 66. h6 {[%clk 0:00:06]}  g3 {[%clk 0:00:06]} 67. h7 {[%clk 0:00:07]}  g2 {[%clk 0:00:06]} 68. h8=Q+ {[%clk 0:00:07]}  Kg1 {[%clk 0:00:07]} 69. Qd4+ {[%clk 0:00:05]}  Kh1 {[%clk 0:00:07]} 70. Qh4+ {[%clk 0:00:04]}  Kg1 {[%clk 0:00:07]} 71. Kf3 {[%clk 0:00:03]}  Kf1 {[%clk 0:00:06]} 72. Qf2# {[%clk 0:00:03]} 1-0


[Site "https://www.chess.com"]

[Event "Titled Tuesday Blitz July 18 Late 2023"]
[White "Boor, Carl"]
[Black "Reprintsev, Alexander"]
[WhiteFideId "2017008"]
[BlackFideId "14100541"]
[WhiteElo "2394"]
[BlackElo "2462"]
[Result "1-0"]
[Round "11"]
[TimeControl "180+2"]
[Date "2023.07.18"]
[WhiteClock "0:00:08"]
[BlackClock "0:00:00"]
[Board "79"]

1. e4 {[%clk 0:03:00]}  d5 {[%clk 0:02:58]} 2. Nc3 {[%clk 0:02:56]}  d4 {[%clk 0:02:56]} 3. Nce2 {[%clk 0:02:55]}  c5 {[%clk 0:02:57]} 4. Ng3 {[%clk 0:02:48]}  Qa5 {[%clk 0:02:55]} 5. Bc4 {[%clk 0:02:39]}  Nc6 {[%clk 0:02:50]} 6. Nf3 {[%clk 0:02:35]}  h5 {[%clk 0:02:48]} 7. h3 {[%clk 0:02:13]}  h4 {[%clk 0:02:42]} 8. Ne2 {[%clk 0:02:12]}  e6 {[%clk 0:02:42]} 9. O-O {[%clk 0:02:02]}  b5 {[%clk 0:02:40]} 10. Bd5 {[%clk 0:01:51]}  exd5 {[%clk 0:02:38]} 11. exd5 {[%clk 0:01:51]}  Nb4 {[%clk 0:02:28]} 12. c3 {[%clk 0:01:36]}  Nxd5 {[%clk 0:02:18]} 13. b4 {[%clk 0:01:35]}  Qc7 {[%clk 0:02:12]} 14. bxc5 {[%clk 0:01:33]}  d3 {[%clk 0:02:08]} 15. Ned4 {[%clk 0:01:29]}  Bxc5 {[%clk 0:02:06]} 16. Re1+ {[%clk 0:01:27]}  Nge7 {[%clk 0:02:05]} 17. a4 {[%clk 0:01:13]}  b4 {[%clk 0:01:56]} 18. cxb4 {[%clk 0:01:11]}  Bxd4 {[%clk 0:01:53]} 19. Nxd4 {[%clk 0:01:09]}  O-O {[%clk 0:01:41]} 20. Bb2 {[%clk 0:01:06]}  Qf4 {[%clk 0:01:32]} 21. Qh5 {[%clk 0:00:59]}  g6 {[%clk 0:01:17]} 22. Qd1 {[%clk 0:00:27]}  Bd7 {[%clk 0:01:12]} 23. Qb3 {[%clk 0:00:22]}  Rad8 {[%clk 0:01:06]} 24. Qxd3 {[%clk 0:00:21]}  Bf5 {[%clk 0:01:03]} 25. Qb3 {[%clk 0:00:18]}  Kh7 {[%clk 0:00:46]} 26. d3 {[%clk 0:00:17]}  Ng8 {[%clk 0:00:43]} 27. Re3 {[%clk 0:00:16]}  Nxe3 {[%clk 0:00:41]} 28. Ne2 {[%clk 0:00:13]}  Qg5 {[%clk 0:00:21]} 29. fxe3 {[%clk 0:00:13]}  Bxh3 {[%clk 0:00:20]} 30. Nf4 {[%clk 0:00:12]}  Be6 {[%clk 0:00:16]} 31. Qc3 {[%clk 0:00:11]}  Nf6 {[%clk 0:00:14]} 32. Rf1 {[%clk 0:00:11]}  Rc8 {[%clk 0:00:13]} 33. Qd2 {[%clk 0:00:12]}  h3 {[%clk 0:00:12]} 34. Rf3 {[%clk 0:00:10]}  Rfd8 {[%clk 0:00:09]} 35. Qf2 {[%clk 0:00:10]}  Kg8 {[%clk 0:00:09]} 36. Rg3 {[%clk 0:00:10]}  Qh6 {[%clk 0:00:07]} 37. Nxe6 {[%clk 0:00:10]}  Nh5 {[%clk 0:00:05]} 38. Rxh3 {[%clk 0:00:09]}  Rc2 {[%clk 0:00:00]} 39. Qxc2 {[%clk 0:00:08]} 1-0


[Site "https://www.chess.com"]